[Event "44th Chess Olympiad Women 2022"]
[Site "Chennai"]
[Date "2022.08.05"]
[Round "7.27"]
[White "Gazola, Vanessa Ramos"]
[Black "Mihailova, Alina"]
[Result "0-1"]
[ECO "D26"]
[WhiteElo "2000"]
[BlackElo "1926"]
[Annotator "TA"]
[PlyCount "64"]
[EventDate "2022.07.29"]
[EventType "team-tourn"]
[EventCountry "IND"]
[SourceTitle "playchess.com"]
[Source "ChessBase"]
[SourceQuality "1"]
[WhiteTeam "Brazil"]
[BlackTeam "Moldova"]
[WhiteTeamCountry "BRA"]
[BlackTeamCountry "MDA"]
[TimeControl "40/5400+30:1800+30"]

{[%evp 15,64,36,34,29,30,32,46,36,28,10,20,21,26,25,27,-95,-113,-131,-150,-147,-66,-191,-181,-287,-272,-291,-282,-289,-289,-289,-283,-302,-304,-944,-943,-937,-943,-869,-842,-1947,-1888,-29985,-29983,-29985,-1743,-1689,-1707,-1553,-1471,-6499,-5704]} 1. d4 {[%emt 0:00:04]} d5 {[%emt 0:00:08]} 2. c4 {[%emt 0:00:17]} dxc4 {[%emt 0:00:07]} 3. e3 {[%emt 0:00:11]} Nf6 {[%emt 0:00:11]} 4. Bxc4 {[%emt 0:00:18]} e6 {[%emt 0:00:09]} 5. Nf3 {[%emt 0:00:14]} a6 {[%emt 0:00:08]} 6. O-O {[%emt 0:00:29]} b5 {[%emt 0:00:08]} 7. Bd3 {[%emt 0:00:16]} Bb7 {[%emt 0:00:11]} 8. a4 {[%emt 0:01:28]} b4 {[%emt 0:00:11]} 9. Nbd2 {[%emt 0:00:09] D26: Queen's Gambit Accepted: 4 e3 e6 5 Bxc5 c5 sidelines.} c5 {[%emt 0:01:09]} 10. Qe2 {[%emt 0:07:19]} Nbd7 {[%emt 0:02:40]} 11. a5 {[%emt 0:00:55] White is slightly better.} Be7 {[%emt 0:02:18]} 12. Rd1 {[%emt 0:13:38]} O-O {[%emt 0:06:25] [#]} 13. e4 $146 {[%emt 0:13:22][%cal Be3e4,Be4e5][%mdl 32]} ({Predecessor:} 13. Nc4 Qc7 14. Bd2 cxd4 15. exd4 Bd5 16. Nfe5 Qb7 17. f3 Nxe5 18. dxe5 Nd7 19. Kh1 {1-0 (42) Thejkumar,M (2433)-Iskusnyh,S (2473) Chess.com INT 2021}) 13... cxd4 {[%emt 0:06:00]} 14. e5 $1 {[%emt 0:00:13]} Nd5 {[%emt 0:01:18] aiming for ...Nf4.} ({Resist} 14... Ng4 15. h3 Nh6 16. Nb3 $14) 15. Ne4 {[%emt 0:00:14]} (15. Nb3 $11 {keeps the balance.}) 15... Qc7 $17 {[%emt 0:21:11]} 16. Neg5 {[%emt 0:08:05]} h6 $36 {[%emt 0:12:05][%mdl 2048] Keeping White busy.} 17. Nh3 {[%emt 0:12:46][%cal Oc1h6]} Bc5 {[%emt 0:05:40]} ({Stronger than} 17... Nc5 18. Nxd4 Nxd3 19. Rxd3 $17) (17... Rfd8 $17 18. Bc4 Bc5) 18. Qe4 {[%emt 0:05:40] White does not recover from this.} (18. Nf4 $15) 18... N5f6 $1 $19 {[%emt 0:03:19]} 19. Qf4 {[%emt 0:03:52]} (19. Qh4 {was worth a try.} Nxe5 20. Nxe5 Qxe5 21. Bf4) 19... Bxf3 {[%emt 0:06:48]} 20. Qxf3 {[%emt 0:02:52]} Nxe5 {[%emt 0:04:40]} 21. Qg3 {[%emt 0:00:06]} Nh5 {[%emt 0:03:15]} 22. Qh4 {[%emt 0:01:06]} Nxd3 {[%emt 0:01:25]} 23. Rxd3 {[%emt 0:02:47]} Qe5 {[%emt 0:01:05][%cal Re5e1]} 24. g4 $2 {[%emt 0:07:35]} (24. Kf1) 24... Qe1+ {[%emt 0:04:08]} 25. Kg2 {[%emt 0:00:30]} Qe4+ {[%emt 0:00:29]} 26. Rf3 {[%emt 0:00:06]} f5 {[%emt 0:11:13][%cal Bf7f5,Bf5g4][%mdl 32]} 27. Qxh5 {[%emt 0:03:57]} fxg4 {[%emt 0:00:13][%mdl 64] Pin} 28. Bf4 {[%emt 0:00:13]} Qxf3+ {[%emt 0:00:33]} 29. Kg1 {[%emt 0:00:09]} Qxh3 {[%emt 0:01:34]} (29... Rf5 $142 30. Bg3 Rxh5 31. Nf4 Rf5 32. h3 Rxf4 33. hxg4 {[#]} d3 $1 34. Kh2 Bxf2 $1 35. Bxf2 Rxg4 36. Rg1 Qxf2+ 37. Kh3 Rh4#) 30. Qe5 {[%emt 0:00:07] Black is clearly winning.} Qf3 {[%emt 0:01:49]} 31. Bg3 {[%emt 0:00:11]} Qf5 {[%emt 0:00:12]} 32. Qe2 {[%emt 0:00:12]} d3 {[%emt 0:00:05] Weighted Error Value: White=1.04/Black=0.38} 0-1

[Event "44th Chess Olympiad Women 2022"]
[Site "Chennai"]
[Date "2022.08.05"]
[Round "7.28"]
[White "Monroy G., Nataly A."]
[Black "Mordido, Kylen Joy"]
[Result "0-1"]
[ECO "A57"]
[WhiteElo "1907"]
[BlackElo "2023"]
[Annotator "TA"]
[PlyCount "58"]
[EventDate "2022.07.29"]
[EventType "team-tourn"]
[EventCountry "IND"]
[SourceTitle "playchess.com"]
[Source "ChessBase"]
[SourceQuality "1"]
[WhiteTeam "Bolivia"]
[BlackTeam "Philippines"]
[WhiteTeamCountry "BOL"]
[BlackTeamCountry "PHI"]
[TimeControl "40/5400+30:1800+30"]

{[%evp 13,58,35,33,37,51,42,39,39,38,0,0,16,31,13,18,-10,-20,-48,-43,-108,-114,-126,-104,-147,-107,-177,-133,-135,-106,-131,-181,-422,-396,-502,-456,-458,-399,-589,-582,-678,-655,-902,-594,-820,-805,-29998,-29999]} 1. d4 {[%emt 0:00:09]} Nf6 {[%emt 0:00:32]} 2. Nf3 {[%emt 0:00:24]} g6 {[%emt 0:00:53]} 3. c4 {[%emt 0:06:20]} c5 {[%emt 0:05:06]} 4. d5 {[%emt 0:01:11]} b5 {[%emt 0:02:07]} 5. cxb5 {[%emt 0:00:08]} a6 {[%emt 0:01:18]} 6. b6 {[%emt 0:00:58]} d6 {[%emt 0:02:15]} 7. Nc3 {[%emt 0:03:04]} Nbd7 {[%emt 0:02:16] 7...Bg7 is vanishing.} 8. a4 {[%emt 0:01:08][%cal Ba2a4,Ba4a5][%mdl 32] Hoping for a5. A57: Benko/Volga Gambit.} Nxb6 {[%emt 0:01:18]} 9. a5 {[%emt 0:01:28]} Nbd7 {[%emt 0:00:42]} 10. e4 {[%emt 0:00:29] White is slightly better.} Bg7 {[%emt 0:01:54]} 11. Be2 {[%emt 0:02:38]} O-O {[%emt 0:02:05]} 12. O-O {[%emt 0:04:35]} Ne8 {[%emt 0:01:40]} 13. Nd2 {[%emt 0:02:23]} Nc7 {[%emt 0:02:41][%cal Oc7b5]} 14. Qa4 {[%emt 0:07:51]} Rb8 {[%emt 0:04:23] [#]} 15. f4 $146 {[%emt 0:20:33]} ({Predecessor:} 15. Ra3 Ne5 16. f4 Bd7 17. Qd1 Nb5 18. Ra2 Ng4 19. Bxg4 Bxc3 20. Bxd7 Bd4+ 21. Kh1 Qxd7 {½-½ (118) Garcia Garcia,E (1709)-Martinez Carnicer,E (1822) Aragon 2017}) 15... f5 {[%emt 0:06:42]} 16. Kh1 {[%emt 0:04:32]} (16. exf5 $15 Bd4+ 17. Kh1) 16... Nf6 $17 {[%emt 0:02:39]} 17. Bc4 {[%emt 0:09:58]} Kh8 {[%emt 0:03:26]} 18. Re1 {[%emt 0:04:01]} Nh5 {[%emt 0:07:22]} 19. g3 {[%emt 0:08:23]} (19. e5 $17 {was the only defense.}) 19... fxe4 {[%emt 0:14:29]} 20. Ndxe4 {[%emt 0:04:19]} Rb4 {[%emt 0:01:33]} 21. Qa2 {[%emt 0:00:08]} Bb7 {[%emt 0:02:37][%cal Oe7e6] aiming for ...e6!} 22. Bf1 $2 {[%emt 0:02:38]} (22. Kg1 {keeps fighting.}) 22... Qa8 $19 {[%emt 0:06:55][%cal Rc7d5]} 23. Rd1 {[%emt 0:04:29] [#]} Rxe4 $1 {[%emt 0:02:45][%mdl 512]} 24. Nxe4 {[%emt 0:00:11]} Nxd5 {[%emt 0:00:40]} ({And not} 24... Bxd5 25. Rxd5 Nxd5 26. Bg2 $11) 25. Bg2 {[%emt 0:00:36] [#]} (25. Qc4 {is a better defense.} Ndf6 26. Kg1 Nxe4 27. Be2) 25... Ndxf4 $1 {[%emt 0:00:38][%mdl 512]} 26. gxf4 {[%emt 0:03:07]} (26. Bxf4 Bxe4) 26... Bxe4 {[%emt 0:00:14]} 27. Rg1 {[%emt 0:00:18]} Bd4 {[%emt 0:04:04]} 28. b4 {[%emt 0:05:10]} Rf5 {[%emt 0:01:53][%cal Oh5g3] ( -> ...Ng3+!)} 29. bxc5 {[%emt 0:02:18] [#]} Ng3+ $1 {[%emt 0:00:36][%mdl 576] Clearance.  Weighted Error Value: White=0.95/Black=0.20 (precise)} 0-1

[Event "44th Chess Olympiad Women 2022"]
[Site "Chennai"]
[Date "2022.08.05"]
[Round "7.29"]
[White "Moaataz, Ayah"]
[Black "Penafiel Mendoza, Josselyne"]
[Result "1-0"]
[ECO "A24"]
[WhiteElo "2119"]
[BlackElo "1804"]
[Annotator "TA"]
[PlyCount "91"]
[EventDate "2022.07.29"]
[EventType "team-tourn"]
[EventCountry "IND"]
[SourceTitle "playchess.com"]
[Source "ChessBase"]
[SourceQuality "1"]
[WhiteTeam "Egypt"]
[BlackTeam "Ecuador"]
[WhiteTeamCountry "EGY"]
[BlackTeamCountry "ECU"]
[TimeControl "40/5400+30:1800+30"]

{[%evp 19,91,0,14,0,15,0,7,9,36,0,0,0,39,5,16,8,39,39,47,47,43,0,0,0,0,0,0,0,214,185,305,279,278,188,341,-33,-32,-32,-35,-43,-43,-39,-49,-50,0,0,0,0,35,0,91,23,48,27,37,36,167,177,284,294,900,436,484,486,376,375,345,319,29976,29977,29990,29991,29996,29997]} 1. c4 {[%emt 0:00:03]} Nf6 {[%emt 0:00:17]} 2. g3 {[%emt 0:00:08]} g6 {[%emt 0:00:07]} 3. Bg2 {[%emt 0:00:09]} Bg7 {[%emt 0:00:09]} 4. Nc3 {[%emt 0:00:04]} e5 {[%emt 0:00:17]} 5. d3 {[%emt 0:00:06]} O-O {[%emt 0:00:14]} 6. e4 {[%emt 0:00:24]} d6 {[%emt 0:00:27]} 7. Nge2 {[%emt 0:00:08]} c6 {[%emt 0:00:18]} 8. O-O {[%emt 0:00:24]} a6 {[%emt 0:00:03][%cal Ba7a6,Ba6a5][%mdl 32]} 9. a4 {[%emt 0:01:01]} a5 {[%emt 0:00:05]} 10. h3 {[%emt 0:00:53]} Na6 {[%emt 0:02:20]} 11. Be3 {[%emt 0:00:29] A24: English Opening vs King's Indian: Lines without ...Nc6.} Re8 {[%emt 0:01:48]} 12. Qd2 {[%emt 0:02:25] [#]} Nb4 $146 {[%emt 0:29:30]} ({Predecessor:} 12... Nc5 13. Rad1 Qe7 14. f4 exf4 15. Bxf4 Bd7 16. Rf2 Rad8 17. Bh6 Nb3 18. Qe3 Bxh6 19. Qxh6 {1-0 (42) Lilov,V (2434)-Chatalbashev,B (2560) Golden Sands 2013}) 13. d4 {[%emt 0:20:48] The position is equal.} exd4 {[%emt 0:01:12]} 14. Nxd4 {[%emt 0:00:19]} Nd7 {[%emt 0:00:33]} 15. Rad1 {[%emt 0:14:04]} Ne5 {[%emt 0:02:14]} 16. Qe2 {[%emt 0:02:44]} Qe7 {[%emt 0:13:27]} 17. Rd2 {[%emt 0:11:19]} b6 {[%emt 0:10:27]} 18. Rfd1 {[%emt 0:05:30]} Ba6 {[%emt 0:01:09]} 19. b3 {[%emt 0:00:11]} Rad8 {[%emt 0:01:58]} 20. Na2 {[%emt 0:14:50]} d5 {[%emt 0:03:36] [#] Strongly threatening ...Nxa2.} 21. Nxb4 {[%emt 0:06:09]} Qxb4 {[%emt 0:08:56]} 22. exd5 {[%emt 0:02:44]} cxd5 {[%emt 0:01:04]} 23. Nb5 {[%emt 0:00:49] Black must now prevent Nc7.} Bxb5 {[%emt 0:01:28]} (23... Qxb3 $11 {and Black stays safe.} 24. Rxd5 (24. Bxd5 Rd7 $11) 24... Rb8) 24. axb5 $18 {[%emt 0:01:12]} (24. cxb5 $6 d4 $14) 24... d4 {[%emt 0:01:20]} (24... a4 $142) 25. Rxd4 {[%emt 0:03:34]} (25. Bxd4 Nc6 26. Bc5 Qxc5 $16) 25... Rxd4 {[%emt 0:02:04]} 26. Bxd4 {[%emt 0:01:45] This bishop pair is nice.} Qxb3 $2 {[%emt 0:01:24] [#]} (26... a4 {was necessary.} 27. Bxe5 (27. Bxb6 axb3 28. Bd5 Re7 $18) 27... Bxe5) 27. f4 $2 {[%emt 0:02:06]} (27. Bxb6 Qxc4 28. Qxc4 Nxc4 $18) (27. Bd5 $18) 27... Qxc4 $15 {[%emt 0:01:40]} 28. Qxc4 {[%emt 0:03:04]} (28. Qd2 $2 Rd8 29. fxe5 Bxe5 $19) 28... Nxc4 {[%emt 0:00:02][%cal Be5c4,Bc4e3,Be3c2,Bc2b4][%mdl 32]} 29. Bxg7 {[%emt 0:00:45]} Kxg7 {[%emt 0:00:01][%mdl 4096] Endgame KRB-KRN} 30. Rd7 $1 {[%emt 0:00:34]} Ne3 {[%emt 0:04:26]} 31. Bc6 {[%emt 0:00:51]} Rb8 {[%emt 0:07:07]} (31... Re6 $15) 32. Kf2 $11 {[%emt 0:00:52]} Nc2 {[%emt 0:02:40]} 33. Bd5 {[%emt 0:00:49]} Nb4 {[%emt 0:01:16]} 34. Bxf7 {[%emt 0:00:41]} Kh8 {[%emt 0:00:53]} (34... Nd3+ $1 $11 35. Rxd3 Kxf7) 35. Be6 {[%emt 0:01:26] White is more active.} ({Better is} 35. Kf3 $16) 35... Re8 {[%emt 0:01:56]} 36. f5 {[%emt 0:00:35]} gxf5 {[%emt 0:01:07]} 37. Bxf5 {[%emt 0:00:04]} Rf8 {[%emt 0:00:04] A mistake that costs the game.} (37... Re5 $1 $14 38. g4 (38. Bxh7 Rxb5 39. Bg6 a4 $11) (38. Rxh7+ Kg8 $11) 38... Rxb5) 38. g4 $18 {[%emt 0:00:08]} Kg8 {[%emt 0:00:16]} (38... h6 $142 39. Ke3 Ra8) 39. Ke3 {[%emt 0:00:32]} h5 $2 {[%emt 0:01:02]} (39... Rc8 40. Bxh7+ (40. Rxh7 Nd5+ 41. Kd3 Nf4+ 42. Ke4 Rc4+ 43. Kf3 Rb4 $18) 40... Kf8) 40. Kd4 {[%emt 0:00:46]} (40. Be6+ $142 Kh8 41. Ke4) 40... hxg4 {[%emt 0:00:53]} 41. hxg4 {[%emt 0:30:09]} Re8 {[%emt 0:01:30]} 42. Rb7 {[%emt 0:00:00]} Rd8+ {[%emt 0:02:58]} 43. Ke5 {[%emt 0:00:00]} Rd5+ $2 {[%emt 0:04:29]} (43... Kf8 $18 44. Rxb6 a4) 44. Kf6 {[%emt 0:00:00] White mates.} Rd8 {[%emt 0:00:58]} 45. Be6+ {[%emt 0:00:00]} Kh8 {[%emt 0:00:47]} 46. Kg6 {[%emt 0:00:00] Weighted Error Value: White=0.45/Black=0.67} 1-0

[Event "44th Chess Olympiad Women 2022"]
[Site "Chennai"]
[Date "2022.08.05"]
[Round "7.29"]
[White "Ortiz Verdezoto, Anahi"]
[Black "Mona, Khaled"]
[Result "1-0"]
[ECO "E90"]
[WhiteElo "2046"]
[BlackElo "2127"]
[Annotator "TA"]
[PlyCount "67"]
[EventDate "2022.07.29"]
[EventType "team-tourn"]
[EventCountry "IND"]
[SourceTitle "playchess.com"]
[Source "ChessBase"]
[SourceQuality "1"]
[WhiteTeam "Ecuador"]
[BlackTeam "Egypt"]
[WhiteTeamCountry "ECU"]
[BlackTeamCountry "EGY"]
[TimeControl "40/5400+30:1800+30"]

{[%evp 12,67,50,6,109,97,117,111,122,113,166,161,192,191,216,208,208,206,215,212,220,196,501,493,505,501,517,492,596,579,859,852,855,845,829,822,893,803,784,712,730,730,730,728,709,637,702,681,679,681,700,604,597,585,679,458,3266,6815]} 1. d4 {[%emt 0:00:12]} Nf6 {[%emt 0:00:14]} 2. c4 {[%emt 0:00:07]} g6 {[%emt 0:00:06]} 3. Nc3 {[%emt 0:00:07]} Bg7 {[%emt 0:00:04]} 4. e4 {[%emt 0:00:04]} d6 {[%emt 0:00:03]} 5. h3 {[%emt 0:00:20]} Nc6 {[%emt 0:00:19]} 6. Nf3 {[%emt 0:02:39]} O-O {[%emt 0:00:12]} 7. Be3 {[%emt 0:09:07]} h6 {[%emt 0:02:35] E90: King's Indian: Classical: Early deviations and 6 h3.} (7... e5 $1 $11 {remains equal.}) 8. Qd2 $16 {[%emt 0:02:51]} Kh7 {[%emt 0:00:07]} 9. g4 {[%emt 0:04:32] White is more active.} e5 {[%emt 0:09:45] White is better.} 10. d5 {[%emt 0:01:15] [#]} Nb8 $146 {[%emt 0:01:40]} (10... Ne7 $16 {keeps fighting.}) ({Predecessor:} 10... Ne7 11. g5 Nfg8 12. gxh6 Bxh6 13. h4 Bg4 14. Be2 Bxe3 15. Qxe3 Kg7 16. Ng5 Nh6 17. O-O-O f5 18. Ne6+ {1-0 (18) Mirza,D (1906)-Burke,P Chess.com INT 2022}) 11. g5 $18 {[%emt 0:05:44]} hxg5 {[%emt 0:01:28]} 12. Nxg5+ {[%emt 0:08:26]} (12. Bxg5 Qe8 $14) 12... Kg8 {[%emt 0:00:08]} 13. Be2 {[%emt 0:00:29]} c6 {[%emt 0:01:03]} 14. O-O-O {[%emt 0:02:25]} cxd5 {[%emt 0:03:51]} 15. cxd5 {[%emt 0:06:25]} ({Don't do} 15. Nxd5 $6 Nxd5 16. cxd5 (16. Qxd5 Nc6 $16) 16... Nd7 $16) 15... Na6 {[%emt 0:02:00]} 16. Rdg1 {[%emt 0:03:42] Strongly threatening h4.} Ne8 $2 {[%emt 0:09:38]} (16... b5 {is tougher.} 17. Nxb5 (17. Bxb5 Qc7 $16) 17... Nc7 18. Nxc7 Qxc7+ 19. Kb1 Bd7) 17. h4 {[%emt 0:02:38] White is clearly winning.} f5 {[%emt 0:00:17]} 18. exf5 {[%emt 0:00:05]} Bxf5 {[%emt 0:00:05]} 19. Ne6 {[%emt 0:08:07]} Qa5 {[%emt 0:03:19]} 20. Nxf8 {[%emt 0:02:54]} Nb4 {[%emt 0:11:14]} 21. Nxg6 {[%emt 0:02:46] Threatens to win with Ne7+.} Nxa2+ {[%emt 0:00:39]} 22. Kd1 {[%emt 0:01:20] aiming for Ne7+.} Kf7 {[%emt 0:07:22] Inhibits Ne7.} 23. Bh5 {[%emt 0:06:41]} Rc8 {[%emt 0:00:53]} 24. Nxe5+ {[%emt 0:04:13]} Ke7 {[%emt 0:01:01] [#]} 25. Rxg7+ $1 {[%emt 0:03:16]} Nxg7 {[%emt 0:00:17]} 26. Bg5+ {[%emt 0:00:06]} Kf8 {[%emt 0:00:28]} 27. Ng6+ {[%emt 0:07:03][%cal Be5g6,Bg6e7,Be7f5,Bf5h6][%mdl 32]} Kf7 {[%emt 0:03:59] [#]} 28. Ne7+ $1 {[%emt 0:04:11]} Nxh5 {[%emt 0:00:23]} 29. Nxf5 {[%emt 0:00:01]} Nxc3+ {[%emt 0:00:54]} 30. bxc3 {[%emt 0:00:05]} Rxc3 {[%emt 0:04:05]} 31. Be3 {[%emt 0:04:43]} Qa4+ {[%emt 0:00:51] [#]} 32. Ke1 $1 {[%emt 0:01:46]} Rc2 {[%emt 0:06:15]} 33. Qd4 {[%emt 0:03:44]} Qa3 {[%emt 0:11:36]} (33... Qxd4 $142 34. Nxd4 Rc5) 34. Nh6+ {[%emt 0:00:40] Black got outplayed after the opening.  Weighted Error Value: White=0.06 (flawless) /Black=0.52} 1-0

[Event "44th Chess Olympiad Women 2022"]
[Site "Chennai"]
[Date "2022.08.05"]
[Round "7.29"]
[White "Nunez Giler, Fanny"]
[Black "Elansary, Eman"]
[Result "0-1"]
[ECO "B04"]
[WhiteElo "1660"]
[BlackElo "1936"]
[Annotator "TA"]
[PlyCount "80"]
[EventDate "2022.07.29"]
[EventType "team-tourn"]
[EventCountry "IND"]
[SourceTitle "playchess.com"]
[Source "ChessBase"]
[SourceQuality "1"]
[WhiteTeam "Ecuador"]
[BlackTeam "Egypt"]
[WhiteTeamCountry "ECU"]
[BlackTeamCountry "EGY"]
[TimeControl "40/5400+30:1800+30"]

{[%evp 25,80,0,0,-4,0,-60,-54,-59,-56,-56,-20,-15,-16,-24,-19,-17,-19,-56,-7,-77,-48,-104,-55,-110,-19,-19,-16,-171,-168,-232,-155,-165,-36,-113,-23,-66,-39,-128,-124,-87,-105,-609,-632,-589,-531,-701,-692,-692,-658,-573,-391,-1871,-1636,-1715,-1015,-3404,-1993]} 1. e4 {[%emt 0:00:20][%cal Be2e4,Be4e5][%mdl 32]} Nf6 {[%emt 0:00:14]} 2. e5 {[%emt 0:01:05]} Nd5 {[%emt 0:00:05]} 3. c4 {[%emt 0:05:18]} Nb6 {[%emt 0:00:24]} 4. d4 {[%emt 0:00:05]} d6 {[%emt 0:00:04]} 5. exd6 {[%emt 0:01:32]} cxd6 {[%emt 0:00:07]} 6. Nc3 {[%emt 0:00:05]} g6 {[%emt 0:01:12]} 7. Be3 {[%emt 0:00:33]} Bg7 {[%emt 0:00:05]} 8. Rc1 {[%emt 0:00:12]} Nc6 {[%emt 0:00:25]} 9. b3 {[%emt 0:08:57]} O-O {[%emt 0:01:25]} 10. Nf3 {[%emt 0:01:47]} Bg4 {[%emt 0:00:59]} 11. Be2 {[%emt 0:00:48]} d5 {[%emt 0:01:42]} 12. c5 {[%emt 0:08:42]} Nc8 {[%emt 0:00:23][%cal Bb6c8,Bc8e7,Be7f5,Bf5e3][%mdl 32]} 13. O-O {[%emt 0:05:03]} e6 {[%emt 0:03:02]} 14. Qd2 {[%emt 0:16:49] B04: Alekhine's Defence: 4 Nf3.} N8e7 {[%emt 0:01:31]} (14... Bxf3 $5 15. Bxf3 N8e7 $11) 15. h3 {[%emt 0:04:22]} (15. Nh4 $11 Bxe2 16. Nxe2) 15... Bxf3 $15 {[%emt 0:00:29]} 16. Bxf3 {[%emt 0:00:05] Black is slightly better.} Nf5 {[%emt 0:00:26]} 17. Ne2 {[%emt 0:01:36]} Qd7 {[%emt 0:08:43] [#]} 18. Bg4 $146 {[%emt 0:06:15]} ({Predecessor:} 18. g3 Rad8 19. Bg2 f6 20. g4 Nxe3 21. fxe3 e5 22. dxe5 fxe5 23. Rxf8+ Kxf8 24. Re1 {0-1 (60) Tselyutin,V (1859)-Borzov,R (2073) Zhukovsky 2012}) 18... Nxe3 {[%emt 0:04:44]} 19. fxe3 {[%emt 0:05:51]} h5 {[%emt 0:06:39]} 20. Bf3 {[%emt 0:00:22]} Rad8 {[%emt 0:08:58]} 21. Nc3 {[%emt 0:08:28]} a6 {[%emt 0:00:28]} (21... Bh6 $15) 22. Na4 {[%emt 0:02:27]} (22. Qf2 $11 {keeps the balance.}) 22... Qe7 {[%emt 0:00:48]} 23. Nb6 {[%emt 0:08:07]} (23. Nc3 $15) 23... Qg5 {[%emt 0:03:20]} (23... f5 $1 $17 24. Kh1 f4 25. exf4 Nxd4) 24. Qf2 {[%emt 0:04:39] [#]} (24. Qe1 $15) 24... Bh6 {[%emt 0:04:10]} (24... f5 $1 $17 {[%cal Rf5f4] ...f4 is the strong threat.} 25. h4 Qh6) 25. Rc3 {[%emt 0:01:16]} h4 {[%emt 0:01:55]} 26. Bg4 $2 {[%emt 0:04:26]} (26. a3 $11 {and White is okay.}) 26... f5 $19 {[%emt 0:02:56]} 27. Bf3 {[%emt 0:00:26]} (27. Bd1 $142) 27... Bg7 {[%emt 0:03:24]} 28. Rd3 {[%emt 0:00:47]} Qh6 {[%emt 0:06:47]} ({Black should play} 28... f4 $19 {Threatens to win with ...fxe3.} 29. Kh1 fxe3 30. Qxe3 Qxe3 31. Rxe3 Nxd4) 29. Qe2 {[%emt 0:01:10] [#]} (29. Kh1 $15) 29... g5 {[%emt 0:01:42]} (29... f4 $1 $17 {[%cal Rf4e3] Strongly threatening ...fxe3.} 30. e4 (30. Bg4 fxe3 31. Rxf8+ Rxf8 $17) 30... Nxd4) 30. Rfd1 {[%emt 0:00:31]} Bf6 {[%emt 0:04:31]} 31. Na4 {[%emt 0:00:50]} (31. Bh5 $15) 31... Rf7 $17 {[%emt 0:01:02]} 32. Nc3 {[%emt 0:00:37]} Kh8 {[%emt 0:01:58]} 33. g4 $2 {[%emt 0:00:08][%mdl 8192]} (33. Rf1 $17) 33... hxg3 $19 {[%emt 0:00:26]} 34. Qg2 {[%emt 0:00:15]} Nb4 {[%emt 0:00:56]} 35. Qxg3 {[%emt 0:02:16]} Nxd3 {[%emt 0:00:22]} 36. Rxd3 {[%emt 0:00:01]} g4 {[%emt 0:00:48]} 37. Bg2 {[%emt 0:01:19]} Rg8 {[%emt 0:00:59] Hoping for ...gxh3.} 38. Kh2 {[%emt 0:00:26]} (38. h4) 38... Bd8 {[%emt 0:03:21] aiming for ...gxh3. Black is clearly winning.} 39. Ne2 {[%emt 0:00:21]} Rfg7 {[%emt 0:00:46] ( -> ...gxh3)} 40. Nf4 {[%emt 0:00:18]} Bh4 {[%emt 0:00:29] Weighted Error Value: White=1.19/Black=0.46} 0-1

[Event "44th Chess Olympiad Women 2022"]
[Site "Chennai"]
[Date "2022.08.05"]
[Round "7.30"]
[White "Vargas, Gabriela"]
[Black "Machlik, Monika"]
[Result "1/2-1/2"]
[ECO "A47"]
[WhiteElo "2140"]
[BlackElo "2111"]
[Annotator "TA"]
[PlyCount "73"]
[EventDate "2022.07.29"]
[EventType "team-tourn"]
[EventCountry "IND"]
[SourceTitle "playchess.com"]
[Source "ChessBase"]
[SourceQuality "1"]
[WhiteTeam "Paraguay"]
[BlackTeam "Norway"]
[WhiteTeamCountry "PAR"]
[BlackTeamCountry "NOR"]
[TimeControl "40/5400+30:1800+30"]

{[%evp 16,73,0,7,10,0,0,7,0,-3,0,0,0,0,9,6,0,0,0,0,0,-7,0,0,0,0,0,0,6,0,7,0,0,0,0,0,0,0,0,0,0,0,0,0,0,0,0,0,0,0,0,0,0,0,0,0,7,0,0,0]} 1. d4 {[%emt 0:00:04]} Nf6 {[%emt 0:00:03]} 2. Nf3 {[%emt 0:00:17]} e6 {[%emt 0:00:05]} 3. e3 {[%emt 0:00:14]} b6 {[%emt 0:01:07]} 4. Bd3 {[%emt 0:00:30]} Bb7 {[%emt 0:00:09]} 5. Nbd2 {[%emt 0:01:02]} c5 {[%emt 0:02:54]} 6. b3 {[%emt 0:03:21]} Be7 {[%emt 0:05:08]} 7. O-O {[%emt 0:00:20]} Nc6 {[%emt 0:02:38]} 8. a3 {[%emt 0:00:43]} O-O {[%emt 0:04:52]} 9. Bb2 {[%emt 0:00:16] The position is equal.} Re8 {[%emt 0:02:40] A47: 1 d4 Nf6 2 Nf3 b6: Torre, London and Colle Systems.} 10. Rc1 {[%emt 0:02:54]} Rc8 {[%emt 0:14:13]} 11. Re1 {[%emt 0:13:19] [#]} d5 $146 {[%emt 0:13:43]} ({Predecessor:} 11... Bf8 12. c4 cxd4 13. exd4 d5 14. Nf1 dxc4 15. bxc4 g6 16. Ne3 Bg7 17. Bb1 Na5 18. Ne5 Nd7 19. Ba2 Nxe5 20. dxe5 h5 21. c5 Rxc5 22. Rxc5 bxc5 {0-1 (30) Rodriguez Vila,A (2508)-Mareco,S (2481) Buenos Aires 2008}) 12. Ne5 {[%emt 0:05:02]} Nxe5 {[%emt 0:07:52]} 13. dxe5 {[%emt 0:00:04]} Ne4 {[%emt 0:02:17]} 14. Bb5 {[%emt 0:25:40]} Rf8 {[%emt 0:01:32]} 15. Nxe4 {[%emt 0:02:49]} dxe4 {[%emt 0:00:04]} 16. Qe2 {[%emt 0:00:13]} Qc7 {[%emt 0:02:05]} 17. Rcd1 {[%emt 0:01:21] [#] aiming for Rd7.} Rfd8 {[%emt 0:00:51] Against Rd7} 18. a4 {[%emt 0:02:56]} Rxd1 {[%emt 0:05:39]} 19. Rxd1 {[%emt 0:00:23] And now Rd7 would win.} Rd8 {[%emt 0:00:04] Inhibits Rd7.} 20. g3 {[%emt 0:07:12]} Rxd1+ {[%emt 0:07:32]} 21. Qxd1 {[%emt 0:00:07]} Qd8 {[%emt 0:00:08]} 22. Qe1 {[%emt 0:06:44]} a5 {[%emt 0:03:57]} 23. Bf1 {[%emt 0:05:11]} Qd5 {[%emt 0:01:20]} 24. c4 {[%emt 0:00:32]} Qd7 {[%emt 0:01:17]} 25. Bc3 {[%emt 0:00:47]} Bd8 {[%emt 0:02:57]} 26. Qb1 {[%emt 0:00:24]} Be7 {[%emt 0:05:56]} 27. Bg2 {[%emt 0:00:19]} Qc6 {[%emt 0:00:55]} 28. h4 {[%emt 0:00:55]} h6 {[%emt 0:00:47]} 29. Kh2 {[%emt 0:00:47]} Bd8 {[%emt 0:01:22]} 30. Qd1 {[%emt 0:00:33]} Be7 {[%emt 0:00:10]} 31. Kh3 {[%emt 0:02:23]} Kf8 {[%emt 0:01:57]} 32. Qg4 {[%emt 0:00:41]} Kg8 {[%emt 0:00:28]} 33. Kh2 {[%emt 0:07:27]} Kf8 {[%emt 0:00:25]} 34. Kh3 {[%emt 0:05:10]} Kg8 {[%emt 0:00:12]} 35. Kh2 {[%emt 0:00:07]} Kf8 {[%emt 0:00:24]} 36. Kh3 {[%emt 0:00:06]} Kg8 {[%emt 0:00:25]} 37. Kh2 {[%emt 0:00:06] Not much happened in this game.  Weighted Error Value: White=0.01 (flawless) /Black=0.01 (flawless)} 1/2-1/2